[Event "WYCC 2018 G14"]
[Site "Halkidiki"]
[Date "2018.10.20"]
[Round "1"]
[White "Desai, Nilomi"]
[Black "Sim, Jia Ru"]
[Result "0-1"]
[ECO "D20"]
[WhiteElo "1606"]
[BlackElo "1979"]
[Annotator "NA"]
[PlyCount "66"]
[EventDate "2018.10.20"]
[EventType "swiss"]
[EventCountry "GRE"]
[SourceTitle "playchess.com"]
[Source "ChessBase"]
[SourceQuality "1"]
[TimeControl "40/5400+30:1800+30"]

1. d4 {[%emt 0:00:00]} d5 {[%emt 0:00:00]} 2. c4 {[%emt 0:00:00]} dxc4 {[%emt 0:00:00]} 3. e3 {[%emt 0:00:00]} e5 {[%emt 0:00:00]} 4. Bxc4 {[%emt 0:02:10]} exd4 {[%emt 0:00:03]} 5. exd4 {[%emt 0:00:57]} Bd6 {[%emt 0:00:08]} 6. Nc3 {[%emt 0:02:08]} Nf6 {[%emt 0:00:09]} 7. Nf3 {[%emt 0:00:22]} O-O {[%emt 0:00:18]} 8. O-O {[%emt 0:00:10]} Nc6 {[%emt 0:00:33]} 9. h3 {[%emt 0:02:27]} h6 {[%emt 0:00:25]} 10. Be3 {[%emt 0:03:46]} Bf5 {[%emt 0:01:41]} 11. a3 {[%emt 0:02:25]} a6 {[%emt 0:01:39]} 12. b4 {[%emt 0:02:13]} Re8 {[%emt 0:21:36]} 13. Qb3 {[%emt 0:05:10]} Qd7 14. Rfd1 {[%emt 0:06:08]} Re7 {[%emt 0:16:20]} 15. Ne5 {[%emt 0:10:01]} Nxe5 {[%emt 0:07:35]} 16. dxe5 {[%emt 0:00:28]} Rxe5 {[%emt 0:00:07]} 17. Bd4 {[%emt 0:01:14]} Rae8 {[%emt 0:09:08]} 18. f4 {[%emt 0:06:30]} R5e6 {[%emt 0:09:37]} 19. Bxe6 {[%emt 0:03:44]} Rxe6 {[%emt 0:03:09]} 20. Be5 {[%emt 0:05:16]} Nh5 {[%emt 0:06:09]} 21. Bxd6 {[%emt 0:02:04]} cxd6 {[%emt 0:00:08]} 22. Nd5 {[%emt 0:04:16]} Rg6 {[%emt 0:02:34]} 23. Qf3 {[%emt 0:02:02]} Bxh3 {[%emt 0:09:05]} 24. Qxh5 {[%emt 0:02:23]} Rxg2+ {[%emt 0:00:08]} 25. Kh1 {[%emt 0:00:05]} Bg4 {[%emt 0:00:13]} 26. Qh4 {[%emt 0:02:00]} Bf3 {[%emt 0:00:27]} 27. Rd3 {[%emt 0:01:23]} Rg4+ {[%emt 0:00:22]} 28. Kh2 {[%emt 0:01:23]} Rxh4+ {[%emt 0:00:11]} 29. Kg3 {[%emt 0:00:42]} Qg4+ {[%emt 0:00:21]} 30. Kf2 {[%emt 0:00:28]} Rh2+ {[%emt 0:00:10]} 31. Ke3 {[%emt 0:00:07]} Bxd5 {[%emt 0:00:15]} 32. Rxd5 {[%emt 0:00:09]} Qe6+ {[%emt 0:00:05]} 33. Kd4 {[%emt 0:00:17]} Rd2+ 0-1

[Event "WYCC 2018 G14"]
[Site "Halkidiki"]
[Date "2018.10.20"]
[Round "1"]
[White "Alimova, Sevinch"]
[Black "Hrebenshchykova, Yelyzaveta"]
[Result "0-1"]
[ECO "E85"]
[WhiteElo "1596"]
[BlackElo "1968"]
[Annotator "NA"]
[PlyCount "160"]
[EventDate "2018.10.20"]
[EventType "swiss"]
[EventCountry "GRE"]
[SourceTitle "playchess.com"]
[Source "ChessBase"]
[SourceQuality "1"]
[TimeControl "40/5400+30:1800+30"]

1. d4 {[%emt 0:00:00]} Nf6 {[%emt 0:00:00]} 2. c4 {[%emt 0:00:00]} g6 {[%emt 0:00:00]} 3. Nc3 {[%emt 0:00:00]} Bg7 {[%emt 0:00:07]} 4. e4 {[%emt 0:00:00]} d6 {[%emt 0:00:07]} 5. f3 {[%emt 0:00:06]} O-O {[%emt 0:00:08]} 6. Be3 {[%emt 0:00:06]} e5 {[%emt 0:00:09]} 7. Nge2 {[%emt 0:00:17]} Nbd7 {[%emt 0:00:28]} 8. Qd2 {[%emt 0:01:19]} c6 {[%emt 0:00:16]} 9. O-O-O {[%emt 0:01:51]} a6 {[%emt 0:00:20]} 10. dxe5 {[%emt 0:01:13]} dxe5 {[%emt 0:00:47] E86: King's Indian: Sämisch: 6...e5 7 Nge2 c6} (10... Nxe5 11. Nd4 d5 12. exd5 cxd5 13. c5 Re8 14. Bh6 Bh8 15. Bg5 Be6 16. Qf4 Ned7 17. h4 Nh5 18. Qd6 {0-1 (27) Laznicka,V (2601)-Chuprov,D (2577) Pardubice 2008}) 11. c5 {[%emt 0:11:33]} Qa5 {[%emt 0:13:51]} 12. Kb1 {[%emt 0:16:03]} Nxc5 $146 {[%emt 0:05:22]} ({Predecessor:} 12... b5 13. cxb6 Nxb6 14. Nd5 Qxd2 15. Ne7+ Kh8 16. Bxd2 Bb7 17. Rc1 c5 18. Ba5 {1-0 (28) Rene,M-Schuilenburg,H Dos Hermanas 2004}) 13. Bxc5 {[%emt 0:10:08]} Qxc5 {[%emt 0:00:12]} 14. Na4 {[%emt 0:01:57]} Qa7 {[%emt 0:14:57]} 15. Nc1 {[%emt 0:07:26]} b5 {[%emt 0:08:30]} 16. Nc3 {[%emt 0:00:41]} Be6 {[%emt 0:01:58]} 17. Be2 {[%emt 0:04:29]} a5 {[%emt 0:07:35]} 18. g4 Qe7 19. Qd6 {[%emt 0:14:52]} Qxd6 {[%emt 0:17:27]} 20. Rxd6 Rfc8 21. Rdd1 {[%emt 0:07:45]} Nd7 {[%emt 0:12:41]} 22. Nd3 {[%emt 0:03:43]} Nb6 {[%emt 0:00:12]} 23. Nc5 {[%emt 0:01:44]} Bc4 {[%emt 0:00:09]} 24. Bxc4 {[%emt 0:00:27]} Nxc4 {[%emt 0:00:05]} 25. b3 {[%emt 0:01:12]} Nb6 {[%emt 0:01:12]} 26. Kc2 {[%emt 0:01:42]} Bf6 {[%emt 0:05:02]} 27. Nd7 {[%emt 0:02:58]} Nxd7 {[%emt 0:00:40]} 28. Rxd7 {[%emt 0:00:06]} Rd8 {[%emt 0:05:22]} 29. Rhd1 {[%emt 0:00:13]} Rxd7 {[%emt 0:01:20]} 30. Rxd7 {[%emt 0:00:07]} Bd8 {[%emt 0:03:37]} 31. Rd6 {[%emt 0:03:56]} Rc8 {[%emt 0:00:12]} 32. a4 {[%emt 0:02:24]} Kf8 {[%emt 0:01:24]} 33. Rd7 {[%emt 0:02:22]} Bb6 {[%emt 0:01:15]} 34. Ne2 {[%emt 0:01:00]} bxa4 {[%emt 0:00:41]} 35. bxa4 {[%emt 0:00:07]} Rc7 {[%emt 0:00:18]} 36. Rxc7 {[%emt 0:00:59]} Bxc7 {[%emt 0:00:04]} 37. Kc3 {[%emt 0:00:35]} Ke7 {[%emt 0:00:32]} 38. Kc4 {[%emt 0:00:28]} Bd6 {[%emt 0:00:42]} 39. Nc1 {[%emt 0:02:51]} Kf6 {[%emt 0:00:16]} 40. h4 {[%emt 0:00:00]} h5 {[%emt 0:00:00]} 41. g5+ {[%emt 0:00:35]} Ke6 {[%emt 0:03:07]} 42. Kd3 {[%emt 0:14:03]} Bb4 {[%emt 0:14:53]} 43. Ke2 {[%emt 0:03:29]} Kd6 {[%emt 0:01:28]} 44. Nd3 {[%emt 0:01:24]} Bc3 {[%emt 0:00:08]} 45. Kd1 {[%emt 0:01:31]} Bd4 {[%emt 0:00:18]} 46. Kc2 {[%emt 0:03:01]} Ke6 {[%emt 0:04:58]} 47. Kd2 {[%emt 0:05:53]} c5 {[%emt 0:05:12]} 48. Ke2 {[%emt 0:00:38]} c4 {[%emt 0:00:16]} 49. Ne1 {[%emt 0:00:09]} Kd6 {[%emt 0:01:33]} 50. Nc2 {[%emt 0:00:22]} Kc5 {[%emt 0:00:04]} 51. Ke1 {[%emt 0:01:33]} c3 {[%emt 0:00:29]} 52. Kf1 {[%emt 0:01:42]} Kc4 {[%emt 0:00:14]} 53. Ke2 {[%emt 0:00:08]} Kb3 {[%emt 0:00:33]} 54. Kd3 Bf2 {[%emt 0:02:18]} 55. Na1+ {[%emt 0:00:43]} Kb2 {[%emt 0:00:10]} 56. Nc2 {[%emt 0:00:05]} Bxh4 {[%emt 0:01:57]} 57. Ne3 {[%emt 0:00:36]} Bxg5 {[%emt 0:01:38]} 58. Nd1+ {[%emt 0:00:06]} Kb3 {[%emt 0:00:05]} 59. Nxc3 {[%emt 0:00:11]} h4 {[%emt 0:00:08]} 60. Nd1 {[%emt 0:00:13]} h3 {[%emt 0:00:11]} 61. Nf2 {[%emt 0:00:05]} h2 {[%emt 0:00:07]} 62. Nh1 {[%emt 0:00:09]} Kxa4 {[%emt 0:01:13]} 63. Kc4 {[%emt 0:00:06]} Ka3 {[%emt 0:00:11]} 64. Kc3 {[%emt 0:00:04]} a4 {[%emt 0:00:07]} 65. Ng3 {[%emt 0:00:11]} Bf4 66. Nh1 {[%emt 0:00:04]} Ka2 {[%emt 0:00:27]} 67. Kc2 {[%emt 0:00:00]} a3 68. Nf2 f5 {[%emt 0:01:04]} 69. Nh1 {[%emt 0:01:17]} fxe4 {[%emt 0:00:17]} 70. fxe4 {[%emt 0:00:04]} g5 {[%emt 0:00:05]} 71. Nf2 {[%emt 0:00:07] [#]} g4 $1 {[%emt 0:00:05]} 72. Nh1 {[%emt 0:00:10]} g3 {[%emt 0:00:09]} 73. Nxg3 {[%emt 0:00:16]} Bxg3 {[%emt 0:00:06]} 74. Kd3 {[%emt 0:00:03]} h1=Q {[%emt 0:00:11]} 75. Kc4 {[%emt 0:00:04]} Qxe4+ {[%emt 0:00:18]} 76. Kc5 {[%emt 0:00:14]} Qd4+ {[%emt 0:00:26]} 77. Kc6 {[%emt 0:00:07]} e4 {[%emt 0:00:27]} 78. Kb5 {[%emt 0:00:05]} Qc3 {[%emt 0:00:31]} 79. Kb6 {[%emt 0:00:04]} Qc7+ {[%emt 0:00:39]} 80. Kb5 {[%emt 0:00:09]} Bd6 {[%emt 0:00:53]} 0-1

[Event "WYCC 2018 G14"]
[Site "Halkidiki"]
[Date "2018.10.20"]
[Round "1"]
[White "Hoshino, Meilin"]
[Black "Lehaci, Miruna-Daria"]
[Result "0-1"]
[ECO "E26"]
[WhiteElo "1533"]
[BlackElo "1933"]
[Annotator "NA"]
[PlyCount "122"]
[EventDate "2018.10.20"]
[EventType "swiss"]
[EventCountry "GRE"]
[SourceTitle "playchess.com"]
[Source "ChessBase"]
[SourceQuality "1"]
[TimeControl "40/5400+30:1800+30"]

1. d4 {[%emt 0:00:00]} Nf6 {[%emt 0:00:00]} 2. c4 {[%emt 0:00:00]} e6 {[%emt 0:00:00]} 3. Nc3 {[%emt 0:00:00]} Bb4 {[%emt 0:00:00]} 4. e3 {[%emt 0:00:11]} c5 {[%emt 0:00:00]} 5. a3 {[%emt 0:00:50]} Bxc3+ {[%emt 0:01:17]} 6. bxc3 {[%emt 0:00:20]} O-O {[%emt 0:00:08]} 7. Bd3 {[%emt 0:01:33]} d6 {[%emt 0:03:05]} 8. Ne2 {[%emt 0:05:45]} Nc6 {[%emt 0:02:12]} 9. O-O {[%emt 0:02:09]} b6 {[%emt 0:00:30]} 10. Ng3 {[%emt 0:04:49]} Ba6 {[%emt 0:04:25]} 11. Qe2 {[%emt 0:08:40]} Na5 {[%emt 0:03:22]} 12. Rb1 {[%emt 0:03:29]} Rc8 {[%emt 0:11:00]} 13. d5 {[%emt 0:10:21]} Qd7 {[%emt 0:09:15]} 14. Nh5 {[%emt 0:22:29]} Nxh5 {[%emt 0:06:25]} 15. Qxh5 {[%emt 0:00:13]} f5 {[%emt 0:04:32]} 16. Qe2 {[%emt 0:04:36]} e5 {[%emt 0:01:12]} 17. e4 f4 18. Re1 {[%emt 0:06:57]} f3 {[%emt 0:03:57]} 19. gxf3 {[%emt 0:02:58]} Rf6 {[%emt 0:03:39]} 20. Kh1 {[%emt 0:06:11]} Qh3 {[%emt 0:07:40]} 21. f4 {[%emt 0:03:09]} exf4 22. f3 {[%emt 0:02:10]} Bxc4 {[%emt 0:03:51]} 23. Bxc4 {[%emt 0:03:56]} Nxc4 {[%emt 0:00:29]} 24. Rf1 {[%emt 0:02:01]} Ne5 {[%emt 0:02:38]} 25. Bd2 {[%emt 0:01:56]} c4 {[%emt 0:00:51]} 26. Rf2 {[%emt 0:01:14]} h6 {[%emt 0:02:28]} 27. Qf1 {[%emt 0:02:18]} Qh5 {[%emt 0:03:27]} 28. a4 {[%emt 0:02:11]} Nd3 {[%emt 0:02:59]} 29. Rg2 {[%emt 0:00:37]} Rc5 {[%emt 0:00:44]} 30. Rg4 {[%emt 0:01:10]} Qf7 {[%emt 0:04:45]} 31. Qg2 {[%emt 0:00:53]} Ne5 {[%emt 0:00:23]} 32. Rh4 {[%emt 0:00:37]} g5 {[%emt 0:02:19]} 33. Rh3 {[%emt 0:00:08]} Rg6 {[%emt 0:00:56]} 34. Qf1 {[%emt 0:01:41]} Nd3 {[%emt 0:00:43]} 35. Ra1 {[%emt 0:00:46]} Qd7 {[%emt 0:00:14]} 36. Rb1 {[%emt 0:00:39]} Qxa4 {[%emt 0:01:20]} 37. Ra1 {[%emt 0:00:29]} Qd7 {[%emt 0:00:14]} 38. Rb1 {[%emt 0:00:36]} Qxh3 {[%emt 0:00:47]} 39. Qxh3 {[%emt 0:00:06]} Nf2+ {[%emt 0:00:03]} 40. Kg2 {[%emt 0:00:00]} Nxh3 {[%emt 0:00:00]} 41. Kxh3 {[%emt 0:00:29]} Rg7 {[%emt 0:00:40]} 42. Rb4 {[%emt 0:01:36]} Rgc7 {[%emt 0:01:00]} 43. Be1 {[%emt 0:01:02]} Ra5 {[%emt 0:00:37]} 44. Bf2 {[%emt 0:00:32]} h5 {[%emt 0:01:37]} 45. Bd4 {[%emt 0:01:14]} Kf7 {[%emt 0:00:05]} 46. Rb1 {[%emt 0:02:22]} Ra2 {[%emt 0:02:18]} 47. Rg1 {[%emt 0:02:17]} Kg6 {[%emt 0:00:54]} 48. Rb1 {[%emt 0:04:06]} Rd2 {[%emt 0:01:44]} 49. Rc1 {[%emt 0:02:00]} b5 {[%emt 0:03:01]} 50. Ra1 {[%emt 0:01:16]} b4 {[%emt 0:00:59]} 51. Ra6 {[%emt 0:02:07]} Rxd4 {[%emt 0:06:08]} 52. Rxd6+ {[%emt 0:00:34]} Kg7 {[%emt 0:00:24]} 53. cxd4 {[%emt 0:00:20]} c3 {[%emt 0:00:09]} 54. Ra6 {[%emt 0:01:24]} c2 {[%emt 0:00:03]} 55. Ra1 {[%emt 0:00:12]} c1=Q {[%emt 0:01:35]} 56. Rxc1 {[%emt 0:00:07]} Rxc1 {[%emt 0:00:03]} 57. d6 {[%emt 0:00:07]} Rc8 {[%emt 0:00:08]} 58. e5 {[%emt 0:00:27]} Rd8 {[%emt 0:00:29]} 59. d5 {[%emt 0:00:23]} Kf8 {[%emt 0:00:23]} 60. Kg2 {[%emt 0:00:25]} b3 {[%emt 0:00:03]} 61. Kf2 {[%emt 0:00:09]} b2 {[%emt 0:00:03]} 0-1

[Event "WYCC 2018 G14"]
[Site "Halkidiki"]
[Date "2018.10.20"]
[Round "1"]
[White "Yellamraju, Aparna"]
[Black "Kuhar, Larisa"]
[Result "1/2-1/2"]
[ECO "A58"]
[WhiteElo "1518"]
[BlackElo "1916"]
[Annotator "NA"]
[PlyCount "70"]
[EventDate "2018.10.20"]
[EventType "swiss"]
[EventCountry "GRE"]
[SourceTitle "playchess.com"]
[Source "ChessBase"]
[SourceQuality "1"]
[TimeControl "40/5400+30:1800+30"]

1. d4 {[%emt 0:00:00]} Nf6 {[%emt 0:00:00]} 2. c4 {[%emt 0:00:00]} c5 {[%emt 0:00:00]} 3. d5 {[%emt 0:00:00]} b5 {[%emt 0:00:00]} 4. cxb5 {[%emt 0:00:03]} a6 {[%emt 0:00:07]} 5. bxa6 {[%emt 0:00:06]} g6 {[%emt 0:00:14]} 6. Nc3 {[%emt 0:00:13]} Bxa6 {[%emt 0:00:11]} 7. e4 {[%emt 0:00:21]} Bxf1 {[%emt 0:00:19]} 8. Kxf1 {[%emt 0:00:12]} d6 {[%emt 0:00:42]} 9. Nf3 {[%emt 0:00:19]} Nbd7 {[%emt 0:01:11]} 10. a4 {[%emt 0:01:04]} Bg7 {[%emt 0:01:53]} 11. g3 {[%emt 0:00:32]} O-O {[%emt 0:00:29]} 12. Kg2 {[%emt 0:00:25]} Ra6 {[%emt 0:01:03]} 13. Qc2 {[%emt 0:06:15]} Qa8 {[%emt 0:01:45]} 14. Ra3 {[%emt 0:05:41]} e6 {[%emt 0:09:29]} 15. Rd1 {[%emt 0:11:43]} exd5 {[%emt 0:05:17]} 16. Nxd5 {[%emt 0:10:14]} Nxd5 {[%emt 0:00:50]} 17. exd5 {[%emt 0:04:02]} Nb6 {[%emt 0:03:04]} 18. b3 {[%emt 0:06:23]} Nxd5 {[%emt 0:06:26]} 19. Qe4 {[%emt 0:04:01]} Nb4 {[%emt 0:13:06]} 20. Qxa8 {[%emt 0:02:05]} Rfxa8 {[%emt 0:00:10]} 21. Bd2 {[%emt 0:04:32]} Rc8 {[%emt 0:07:54]} 22. Bxb4 {[%emt 0:03:52]} cxb4 {[%emt 0:00:08]} 23. Ra2 {[%emt 0:00:06]} Rc3 {[%emt 0:10:36]} 24. Rb1 {[%emt 0:01:23]} f5 {[%emt 0:10:06]} 25. Rd2 {[%emt 0:02:58]} Bf6 {[%emt 0:12:30]} 26. Rd5 {[%emt 0:04:30]} Rcc6 {[%emt 0:06:29]} 27. Rbd1 {[%emt 0:05:18]} Kf7 {[%emt 0:03:20]} 28. Nd2 {[%emt 0:02:36]} Rc3 {[%emt 0:03:06]} 29. Nc4 {[%emt 0:03:34]} Be7 {[%emt 0:01:54]} 30. Nxd6+ {[%emt 0:06:33]} Bxd6 {[%emt 0:00:11]} 31. Rxd6 {[%emt 0:00:15]} Rxd6 {[%emt 0:00:10]} 32. Rxd6 {[%emt 0:00:05]} Rxb3 {[%emt 0:00:06]} 33. Rb6 {[%emt 0:00:05]} Kg7 {[%emt 0:01:15]} 34. a5 {[%emt 0:02:31]} Ra3 {[%emt 0:00:16]} 35. Rxb4 {[%emt 0:00:08]} Rxa5 {[%emt 0:00:04]} 1/2-1/2

[Event "WYCC 2018 G14"]
[Site "Halkidiki"]
[Date "2018.10.20"]
[Round "1"]
[White "Tsakona, Maria"]
[Black "Baiburina, Kamilla"]
[Result "0-1"]
[ECO "A46"]
[WhiteElo "1503"]
[BlackElo "1907"]
[Annotator "NA"]
[PlyCount "78"]
[EventDate "2018.10.20"]
[EventType "swiss"]
[EventCountry "GRE"]
[SourceTitle "playchess.com"]
[Source "ChessBase"]
[SourceQuality "1"]
[TimeControl "40/5400+30:1800+30"]

1. d4 {[%emt 0:00:30]} Nf6 {[%emt 0:00:00]} 2. Nf3 {[%emt 0:00:06]} e6 {[%emt 0:00:00]} 3. e3 {[%emt 0:00:08]} c5 {[%emt 0:00:04]} 4. b3 {[%emt 0:00:17]} b6 {[%emt 0:01:11]} 5. Bd3 {[%emt 0:00:48]} Bb7 {[%emt 0:00:28]} 6. Nbd2 {[%emt 0:00:23]} cxd4 {[%emt 0:00:31]} 7. exd4 {[%emt 0:00:12]} Be7 {[%emt 0:00:33]} 8. O-O {[%emt 0:00:25]} O-O {[%emt 0:00:13]} 9. Bb2 {[%emt 0:00:38]} d6 {[%emt 0:02:09]} 10. c4 {[%emt 0:11:07]} Nbd7 {[%emt 0:02:02]} 11. Qe2 {[%emt 0:03:10]} Re8 {[%emt 0:01:58]} 12. Rfe1 {[%emt 0:02:39]} Bf8 {[%emt 0:02:52]} 13. Ne4 {[%emt 0:09:31]} Nxe4 {[%emt 0:04:20]} 14. Bxe4 {[%emt 0:00:10]} Bxe4 {[%emt 0:00:42]} 15. Qxe4 {[%emt 0:00:08]} Nf6 {[%emt 0:00:38]} 16. Qd3 {[%emt 0:03:32]} Rc8 {[%emt 0:03:41]} 17. a3 {[%emt 0:14:16]} Qd7 {[%emt 0:07:46]} 18. Rac1 {[%emt 0:11:46]} Qb7 {[%emt 0:04:25]} 19. b4 {[%emt 0:08:17]} a5 {[%emt 0:08:46]} 20. Bc3 {[%emt 0:04:23]} axb4 {[%emt 0:02:13]} 21. axb4 {[%emt 0:04:44]} Rc7 {[%emt 0:04:02]} 22. Rc2 {[%emt 0:08:34]} Rec8 {[%emt 0:02:19]} 23. Nd2 {[%emt 0:00:31]} Be7 {[%emt 0:04:25]} 24. Rb1 {[%emt 0:05:49]} Qc6 {[%emt 0:11:49]} 25. Rbc1 {[%emt 0:01:32]} h6 {[%emt 0:03:53]} 26. h3 {[%emt 0:01:50]} Nh5 {[%emt 0:07:04]} 27. Bb2 {[%emt 0:01:33]} Nf4 {[%emt 0:01:16]} 28. Qf3 {[%emt 0:00:55]} Qxf3 {[%emt 0:00:42]} 29. Nxf3 {[%emt 0:01:45]} Nd3 {[%emt 0:01:52]} 30. Rb1 {[%emt 0:02:54]} Rxc4 {[%emt 0:01:50]} 31. Rxc4 {[%emt 0:01:17]} Rxc4 {[%emt 0:00:21]} 32. Ba3 {[%emt 0:00:04]} Rc2 {[%emt 0:01:43]} 33. Rf1 {[%emt 0:01:50]} Ra2 {[%emt 0:00:33]} 34. Bc1 {[%emt 0:00:12]} Nxb4 {[%emt 0:00:22]} 35. Be3 {[%emt 0:00:14]} Nd5 {[%emt 0:00:59]} 36. Rb1 {[%emt 0:01:09]} Rc2 {[%emt 0:02:46]} 37. Rd1 {[%emt 0:00:40]} b5 {[%emt 0:01:06]} 38. Rb1 {[%emt 0:00:29]} b4 {[%emt 0:00:49]} 39. Kf1 {[%emt 0:00:25]} f6 {[%emt 0:03:04]} 0-1

[Event "WYCC 2018 G14"]
[Site "Halkidiki"]
[Date "2018.10.20"]
[Round "1"]
[White "Burdot, Clara"]
[Black "Lomaia, Diana"]
[Result "1/2-1/2"]
[ECO "B22"]
[WhiteElo "1472"]
[BlackElo "1876"]
[Annotator "NA"]
[PlyCount "81"]
[EventDate "2018.10.20"]
[EventType "swiss"]
[EventCountry "GRE"]
[SourceTitle "playchess.com"]
[Source "ChessBase"]
[SourceQuality "1"]
[TimeControl "40/5400+30:1800+30"]

1. e4 {[%emt 0:00:00]} c5 {[%emt 0:00:00]} 2. c3 {[%emt 0:00:00]} d5 {[%emt 0:00:06]} 3. exd5 {[%emt 0:00:00]} Qxd5 {[%emt 0:00:10]} 4. d4 {[%emt 0:00:00]} Nc6 {[%emt 0:00:24]} 5. Nf3 {[%emt 0:00:00]} Bg4 {[%emt 0:00:21]} 6. Be2 {[%emt 0:00:04]} cxd4 {[%emt 0:00:46]} 7. cxd4 {[%emt 0:00:08]} e6 {[%emt 0:00:23]} 8. Nc3 {[%emt 0:00:08]} Bb4 {[%emt 0:00:14]} 9. O-O {[%emt 0:00:09]} Qa5 {[%emt 0:00:06]} 10. h3 {[%emt 0:00:18]} Bxf3 {[%emt 0:01:07]} 11. Bxf3 {[%emt 0:00:09]} Nge7 {[%emt 0:01:03]} 12. Be3 {[%emt 0:01:00]} O-O {[%emt 0:01:35]} 13. Qb3 {[%emt 0:00:43]} Rfd8 {[%emt 0:02:25]} 14. Rfd1 {[%emt 0:08:56]} Bxc3 {[%emt 0:12:38]} 15. bxc3 {[%emt 0:02:14]} Qc7 {[%emt 0:09:52]} 16. Rac1 {[%emt 0:06:55]} Na5 {[%emt 0:05:15]} 17. Qb5 {[%emt 0:06:30]} a6 {[%emt 0:04:46]} 18. Qe2 {[%emt 0:03:15]} Nc4 {[%emt 0:10:43]} 19. Bg5 {[%emt 0:04:08]} Rac8 {[%emt 0:08:13]} 20. d5 {[%emt 0:08:03]} Qc5 {[%emt 0:23:35]} 21. Bh4 {[%emt 0:08:07]} e5 {[%emt 0:01:58]} 22. d6 {[%emt 0:09:29]} Rxd6 {[%emt 0:01:01]} 23. Bxb7 {[%emt 0:06:16]} Rb8 {[%emt 0:03:50]} 24. Rxd6 {[%emt 0:02:57]} Nxd6 {[%emt 0:03:20]} 25. Bxa6 {[%emt 0:03:09]} Nef5 {[%emt 0:02:09]} 26. Bg5 {[%emt 0:00:52]} Ng3 {[%emt 0:02:19]} 27. Qe3 {[%emt 0:03:01]} Qxe3 {[%emt 0:01:45]} 28. Bxe3 {[%emt 0:00:28]} Ngf5 {[%emt 0:00:51]} 29. a4 {[%emt 0:03:24]} Nxe3 {[%emt 0:01:25]} 30. fxe3 {[%emt 0:00:06]} Ne4 {[%emt 0:00:17]} 31. c4 {[%emt 0:05:49]} Nc5 {[%emt 0:00:21]} 32. Bb5 {[%emt 0:00:23]} Kf8 {[%emt 0:01:04]} 33. Rd1 {[%emt 0:00:40]} Ra8 {[%emt 0:00:27]} 34. Rd5 {[%emt 0:03:22]} Nxa4 {[%emt 0:01:06]} 35. Rxe5 {[%emt 0:01:42]} f6 {[%emt 0:01:02]} 36. Rd5 {[%emt 0:02:10]} Nc3 {[%emt 0:00:22]} 37. Rd3 {[%emt 0:01:12]} Nxb5 {[%emt 0:00:19]} 38. cxb5 {[%emt 0:00:06]} Ra1+ {[%emt 0:00:07]} 39. Kf2 {[%emt 0:00:10]} Rb1 {[%emt 0:00:04]} 40. Rd5 {[%emt 0:00:00]} Ke7 {[%emt 0:00:00]} 41. e4 {[%emt 0:01:53]} 1/2-1/2

[Event "WYCC 2018 G14"]
[Site "Halkidiki"]
[Date "2018.10.20"]
[Round "1"]
[White "Van Sebille, Sulia"]
[Black "Kasaeva, Sofiia"]
[Result "0-1"]
[ECO "C54"]
[WhiteElo "1442"]
[BlackElo "1874"]
[Annotator "NA"]
[PlyCount "74"]
[EventDate "2018.10.20"]
[EventType "swiss"]
[EventCountry "GRE"]
[SourceTitle "playchess.com"]
[Source "ChessBase"]
[SourceQuality "1"]
[TimeControl "40/5400+30:1800+30"]

1. e4 {[%emt 0:00:00]} e5 {[%emt 0:00:00]} 2. Nf3 {[%emt 0:00:00]} Nc6 {[%emt 0:00:00]} 3. Bc4 {[%emt 0:00:00]} Bc5 {[%emt 0:00:04]} 4. c3 {[%emt 0:00:04]} Nf6 {[%emt 0:00:13]} 5. d4 {[%emt 0:00:12]} exd4 {[%emt 0:00:18]} 6. cxd4 {[%emt 0:00:08]} Bb4+ {[%emt 0:00:19]} 7. Nc3 {[%emt 0:00:09]} Nxe4 {[%emt 0:00:15]} 8. O-O {[%emt 0:00:11]} Bxc3 {[%emt 0:00:26]} 9. d5 {[%emt 0:00:22]} Bf6 {[%emt 0:00:12]} 10. dxc6 {[%emt 0:01:47]} bxc6 {[%emt 0:00:07]} 11. Re1 {[%emt 0:03:13]} d5 {[%emt 0:00:42]} 12. Bd3 {[%emt 0:00:59]} O-O {[%emt 0:02:56]} 13. Bxe4 {[%emt 0:03:07]} dxe4 {[%emt 0:00:48]} 14. Qxd8 {[%emt 0:03:26]} Rxd8 {[%emt 0:00:25]} 15. Nd2 {[%emt 0:16:00]} Bf5 {[%emt 0:03:02]} 16. h3 h5 {[%emt 0:17:11]} 17. Nxe4 {[%emt 0:21:50]} Bxe4 {[%emt 0:00:42]} 18. Rxe4 {[%emt 0:03:59]} Rd1+ {[%emt 0:02:07]} 19. Kh2 {[%emt 0:00:23]} Bd4 {[%emt 0:12:08]} 20. Re2 {[%emt 0:11:29]} c5 {[%emt 0:05:28]} 21. g3 {[%emt 0:02:26]} Kf8 {[%emt 0:13:52]} 22. Kg2 {[%emt 0:05:02]} Re8 {[%emt 0:01:08]} 23. Rc2 {[%emt 0:07:53]} Ree1 {[%emt 0:03:39]} 24. h4 {[%emt 0:05:11]} Ke8 {[%emt 0:01:38]} 25. Kf3 {[%emt 0:01:32]} Kd7 {[%emt 0:01:47]} 26. Kg2 {[%emt 0:00:53]} Ke6 {[%emt 0:02:32]} 27. Kf3 {[%emt 0:04:14]} Kf5 {[%emt 0:04:50]} 28. a3 {[%emt 0:01:54]} Rd3+ {[%emt 0:02:31]} 29. Kg2 {[%emt 0:00:29]} Ke4 {[%emt 0:05:05]} 30. Ra2 {[%emt 0:03:10]} Rdd1 {[%emt 0:01:24]} 31. f3+ {[%emt 0:01:27]} Kd3 {[%emt 0:01:03]} 32. b3 {[%emt 0:00:31]} Rg1+ {[%emt 0:00:37]} 33. Kh3 {[%emt 0:00:14]} Rh1+ {[%emt 0:00:07]} 34. Rh2 {[%emt 0:00:14]} Rxh2+ {[%emt 0:00:06]} 35. Kxh2 {[%emt 0:00:12]} Rxc1 {[%emt 0:00:07]} 36. Kg2 {[%emt 0:00:38]} Rc2+ {[%emt 0:00:21]} 37. Rxc2 {[%emt 0:00:05]} Kxc2 {[%emt 0:00:04]} 0-1

[Event "WYCC 2018 G14"]
[Site "Halkidiki"]
[Date "2018.10.21"]
[Round "2"]
[White "Ning, Kaiyu"]
[Black "Randrianarimanana, Alicia"]
[Result "1-0"]
[ECO "E66"]
[WhiteElo "2217"]
[BlackElo "1947"]
[Annotator "NA"]
[PlyCount "87"]
[EventDate "2018.10.20"]
[EventType "swiss"]
[EventCountry "GRE"]
[SourceTitle "playchess.com"]
[Source "ChessBase"]
[SourceQuality "1"]
[TimeControl "40/5400+30:1800+30"]

1. d4 Nf6 2. c4 g6 3. Nf3 Bg7 4. g3 O-O 5. Bg2 d6 6. O-O c5 7. Nc3 Nc6 8. d5 Na5 9. Qd3 a6 {LiveBook: 47 Games} 10. a4 e6 {E66: King's Indian: Fianchetto: 6...c5 7 0-0 Nc6 8 d5} 11. Bf4 $146 ({Predecessor:} 11. Bg5 h6 12. Bxf6 Qxf6 13. Rab1 e5 14. Nd2 Qd8 15. e4 b6 16. Kh1 Ra7 17. b4 Nb7 18. Qe3 {1-0 (51) Williams,J (2333)-Hua,L (2333) Saint Louis 2017}) 11... e5 12. Bg5 Qc7 13. Nd2 Nd7 (13... h6 $11 14. Bxf6 Bxf6) 14. e4 f5 15. f3 f4 16. g4 b6 17. Bh4 Bf6 18. Be1 Qd8 19. Nd1 Bh4 20. Nf2 Nb7 21. Nb1 a5 22. Nc3 Nb8 23. Nb5 Na6 24. Qc3 Bxf2+ 25. Kxf2 Qh4+ 26. Ke2 Qxh2 27. Bf2 Qh6 28. Rh1 Qg7 29. g5 Qe7 30. Bh3 Bxh3 31. Rxh3 Qxg5 32. Rg1 Qe7 33. Bh4 Qd7 34. Rg4 $15 ({Better is} 34. Rh2 $11) 34... Rae8 35. Qe1 h5 36. Rxg6+ Kh7 37. Qg1 Rg8 38. Bf6 Rxg6 39. Rxh5+ Rh6 40. Rxh6+ Kxh6 41. Qg5+ Kh7 42. Qh5+ Kg8 43. Qh8+ Kf7 44. Qg7# 1-0